bitfinex/quotes_ETHUSD_20260225
["timestamp","ask_amount","ask_price","bid_price","bid_amount"]
[1772035834086,7.10744312,2021.5,2020.8,2.45749232]
[1772035834287,7.10744312,2021.5,2020.6,8.72438206]
[1772035834486,7.10744312,2021.5,2020.6,7.50410344]
[1772035834687,7.10744312,2021.5,2020.6,1.2372137]
[1772035836228,7.10744312,2021.5,2020.5,3.15026883]
[1772035836589,7.10744312,2021.5,2020.6,2.45749232]
[1772035837319,7.10744312,2021.5,2020.6,8.72438206]
[1772035837695,1.23658307,2021.7,2021.0,2.45749232]
[1772035838117,5.87068655,2021.6,2020.8,8.72438206]
[1772035838330,5.87068655,2021.6,2020.6,2.45749232]
[1772035838492,5.87068655,2021.6,2020.7,1.912]
[1772035838808,5.87068655,2021.6,2020.8,1.2371338]
[1772035838809,1.23670541,2021.5,2020.8,1.2371338]
[1772035839014,1.23670541,2021.5,2020.7,3.14915643]
[1772035839702,7.10739196,2021.5,2020.7,3.14915643]
[1772035840117,7.10739196,2021.5,2020.7,1.23715643]
[1772035840795,1.23660891,2021.7,2020.8,2.45749232]
[1772035840989,1.23660891,2021.7,2020.9,6.26688974]
[1772035841588,7.10729546,2021.7,2020.7,1.23715643]
[1772035842187,7.10729546,2021.7,2020.5,10.63538206]
[1772035842393,5.87068655,2021.3,2020.3,17.904972]
[1772035842692,1.23688897,2021.2,2020.5,1.23731749]
[1772035843497,8.85456213,2021.3,2020.5,1.23731749]
[1772035844100,7.61768655,2021.3,2020.5,1.23731749]
[1772035844425,8.85451796,2021.3,2020.5,1.23731749]
[1772035844929,5.87068655,2021.2,2020.4,7.50423561]
[1772035845494,0.002,2021.3,2020.6,8.72438206]
[1772035846125,0.002,2021.3,2020.7,6.26688974]
[1772035846591,1.15319067,2021.4,2020.7,6.26688974]
[1772035846797,0.002,2021.5,2021.0,2.45749232]
[1772035847049,0.002,2021.5,2021.0,10.63638206]
[1772035847495,0.002,2021.5,2021.0,8.17888974]
[1772035848208,0.002,2021.5,2021.0,1.912]
[1772035848209,7.10939602,2021.5,2021.0,1.912]
[1772035849310,7.10939602,2021.5,2020.7,1.2371654]
[1772035850196,0.002,2021.5,2020.7,7.50405514]
[1772035850397,1.23870747,2021.5,2020.7,7.50405514]
[1772035850598,0.002,2021.5,2020.7,7.50405514]
[1772035851141,0.002,2021.5,2021.1,6.26688974]
[1772035851847,0.002,2021.5,2021.2,2.45749232]
[1772035852042,0.002,2021.8,2021.2,8.72438206]
[1772035852237,0.002,2022.0,2021.5,6.26688974]
[1772035852439,1.23821738,2022.3,2021.7,6.26688974]
[1772035852616,1.23597616,2022.7,2022.1,2.45749232]
[1772035852961,0.002,2022.9,2022.2,1.23627732]
[1772035853115,0.002,2022.9,2022.2,7.50316706]
[1772035853738,5.87268655,2022.9,2022.1,1.23629324]
[1772035855019,1.23591061,2022.8,2022.1,1.23629324]
[1772035855821,7.10857964,2022.9,2022.1,1.23629324]
[1772035856326,1.23789309,2022.9,2022.1,7.70969228]
[1772035856532,0.002,2022.9,2022.4,6.47339904]
[1772035856863,0.002,2023.1,2022.6,3.42606485]
[1772035857171,2.97838648,2023.7,2022.7,36.47339904]
[1772035857473,2.97838648,2023.7,2022.5,8.37029894]
[1772035857474,7.51466647,2023.8,2022.8,11.81746389]
[1772035857755,7.51466647,2023.8,2022.9,6.47339904]
[1772035857925,7.51463026,2023.8,2023.0,26.236797]
[1772035858127,7.51463026,2023.8,2023.0,14.227493]
[1772035858346,7.51463026,2023.8,2022.9,15.8474]
[1772035859037,7.51463026,2023.8,2022.9,17.08320162]
[1772035859239,7.51463026,2023.8,2023.0,15.6]
[1772035859640,7.51463026,2023.8,2022.9,1.23580162]
[1772035859841,7.51463026,2023.8,2022.9,4.407904]
[1772035860571,7.51463026,2023.8,2022.9,6.47339904]
[1772035861173,7.51463026,2023.8,2022.7,4.94381067]
[1772035861174,6.27932758,2023.6,2022.7,1.919]
[1772035861345,6.27932758,2023.4,2022.7,1.919]
[1772035862941,6.27932758,2023.4,2022.5,1.23604806]
[1772035863171,1.23560519,2023.3,2022.5,1.23604806]
[1772035863359,7.51493277,2023.3,2022.5,1.23604806]
[1772035864204,6.27932758,2023.6,2022.7,6.47339904]
[1772035864479,7.56000285,2023.9,2022.9,9.89946389]
[1772035864480,10.1334461,2023.9,2022.9,9.89946389]
[1772035864643,10.1334461,2023.9,2023.0,26.984776]
[1772035865069,10.1334461,2023.9,2022.9,9.89946389]
[1772035865272,6.27932758,2023.8,2022.7,1.23597172]
[1772035865475,1.23524238,2023.9,2023.0,6.47339904]
[1772035865678,1.23517786,2024.0,2023.0,6.47339904]
[1772035865886,1.23517786,2024.0,2023.1,1.917]
[1772035866490,7.51450544,2024.0,2023.1,1.917]
[1772035866864,6.27932758,2023.9,2023.1,1.917]
[1772035867472,7.51462751,2023.8,2023.1,1.917]
[1772035867669,6.27932758,2023.7,2022.8,12.615844]
[1772035867906,6.27932758,2023.7,2022.7,1.23596449]
[1772035868566,6.27932758,2023.7,2022.4,1.23611024]
[1772035869178,6.27932758,2023.7,2022.5,7.50044]
[1772035869376,1.23542202,2023.6,2022.6,1.23603282]
[1772035869705,6.27932758,2023.5,2022.5,2.0804]
[1772035869918,10.11150678,2023.8,2022.8,3.42606485]
[1772035869919,6.28132758,2023.8,2022.8,3.42606485]
[1772035870070,7.51666396,2023.8,2022.9,10.63734504]
[1772035870374,7.51666396,2023.8,2022.6,9.76817]
[1772035870584,9.25766396,2023.8,2022.9,30.0]
[1772035870891,6.28132758,2023.8,2023.0,3.42606485]
[1772035871092,0.002,2023.8,2023.1,6.39326268]
[1772035871474,0.002,2023.8,2023.2,7.70906531]
[1772035871679,0.002,2023.8,2023.1,1.23567969]
[1772035871997,6.27932758,2023.7,2022.8,1.916]
[1772035872291,6.27932758,2023.7,2022.8,15.6]
[1772035872493,6.27932758,2023.5,2022.8,12.387]
[1772035872670,6.27932758,2023.5,2022.5,1.23605856]
[1772035872865,6.27932758,2023.5,2022.5,3.15205856]
[1772035873488,1.23554413,2023.4,2022.5,3.15205856]
[1772035873889,1.23554413,2023.4,2022.6,21.464986]
[1772035874085,1.23554413,2023.4,2022.6,5.185385]
[1772035874394,7.51487171,2023.4,2022.5,3.15205856]
[1772035875269,7.51487171,2023.4,2022.4,1.23615435]
[1772035875470,7.51487171,2023.4,2022.2,1.23627732]
[1772035875700,7.51487171,2023.4,2022.3,27.08506104]
[1772035875878,7.51487171,2023.4,2022.3,6.47339904]
[1772035878186,7.51487171,2023.4,2022.4,3.15315506]
[1772035878483,7.51487171,2023.4,2022.5,6.47339904]
[1772035878683,8.02132758,2023.4,2022.5,6.47339904]
[1772035879000,1.23542202,2023.6,2022.7,9.89946389]
[1772035879303,1.23542202,2023.6,2022.8,8.39039904]
[1772035879802,0.002,2023.8,2023.0,39.89946389]
[1772035879996,1.23731746,2023.8,2023.1,6.47339904]
[1772035880184,0.002,2023.8,2023.2,1.23566627]
[1772035880517,6.28132758,2023.8,2022.9,1.23584952]
[1772035881804,6.27932758,2023.6,2022.6,1.918]
[1772035882006,8.02032758,2023.7,2022.7,6.47339904]
[1772035882236,6.27932758,2023.6,2022.7,6.47339904]
[1772035882400,2.97641154,2023.7,2023.1,0.001]
[1772035883231,9.25573912,2023.7,2023.1,0.001]
[1772035883905,6.27932758,2023.6,2023.1,0.001]
[1772035884830,1.23548307,2023.5,2023.1,0.001]
[1772035885125,6.28132758,2023.8,2023.1,0.001]
[1772035885315,6.27932758,2023.6,2022.7,1.23597172]
[1772035885509,1.23731917,2023.8,2022.9,9.55093391]
[1772035886017,7.33800202,2023.8,2022.9,6.12486906]
[1772035887298,7.33800202,2023.8,2023.0,1.23578843]
[1772035887522,7.33800202,2023.8,2022.9,7.36067694]
[1772035889036,7.33800202,2023.8,2022.9,1.23580788]
[1772035890106,7.33800202,2023.8,2022.8,25.8846676]
[1772035890408,7.33800202,2023.8,2022.8,6.4889676]
[1772035890614,7.33800202,2023.8,2022.8,15.607752]
[1772035891007,7.33800202,2023.8,2022.8,22.0967196]
[1772035891331,7.33800202,2023.8,2022.8,6.4889676]
[1772035892017,7.33800202,2023.8,2022.6,3.15198516]
[1772035892018,6.12990609,2023.5,2022.6,3.15198516]
[1772035892228,6.12990609,2023.4,2022.6,3.15202012]
[1772035892930,6.12990609,2023.4,2022.6,3.15202103]
[1772035893126,6.12990609,2023.4,2022.6,9.64098863]
[1772035893508,6.12990609,2023.4,2022.6,7.72598863]
[1772035894006,6.12990609,2023.4,2022.6,1.23702103]
[1772035894211,7.36551128,2023.3,2022.6,0.001]
[1772035895132,6.12990609,2023.3,2022.6,0.001]
[1772035895316,4.94162497,2023.7,2022.6,9.91603245]
[1772035895317,7.87390609,2023.6,2022.6,9.91603245]
[1772035895516,7.87390609,2023.6,2022.7,6.4889676]
[1772035895717,7.87390609,2023.6,2022.8,0.001]
[1772035896124,6.12990609,2023.5,2022.8,0.001]
[1772035896328,6.12990609,2023.3,2022.8,0.001]
[1772035897623,7.36540991,2023.5,2022.8,6.4899676]
[1772035897814,7.36540991,2023.5,2022.8,0.001]
[1772035898536,6.12990609,2023.3,2022.8,0.001]
[1772035900647,7.36557236,2023.2,2022.8,0.001]
[1772035903721,1.753,2023.1,2022.8,0.001]
[1772035904652,2.98877733,2023.1,2022.8,0.001]
[1772035904831,1.755,2023.1,2022.8,0.001]
[1772035906659,7.88490609,2023.1,2022.8,0.001]
[1772035906858,1.23578843,2023.0,2022.8,0.001]
[1772035907436,7.36569452,2023.0,2022.8,0.001]
[1772035909363,6.12990609,2023.0,2022.8,0.001]
[1772035911067,7.36551245,2023.3,2022.8,3.42706485]
[1772035911260,7.36551245,2023.3,2022.8,1.23685352]
[1772035911650,7.36551245,2023.3,2022.8,0.001]
[1772035912043,6.12990609,2023.2,2022.8,0.001]
[1772035912445,1.766,2023.3,2022.8,1.23689292]
[1772035912679,7.36749761,2023.4,2022.8,0.001]
[1772035913574,7.89690609,2023.3,2022.8,0.001]
[1772035915379,1.23566627,2023.2,2022.8,0.001]
[1772035915783,7.61384635,2023.2,2022.8,0.001]
[1772035916677,3.00560519,2023.3,2022.8,5.99718375]
[1772035916873,1.23560519,2023.3,2022.8,5.99718375]
[1772035917184,7.61378527,2023.3,2022.8,5.99718375]
[1772035917883,7.61378527,2023.3,2022.8,7.23309154]
[1772035918665,6.37818008,2023.3,2022.8,7.23309154]
[1772035918867,7.61379008,2023.3,2022.8,7.23309154]
[1772035920276,7.61379008,2023.3,2022.8,7.23308765]
[1772035920594,7.61379008,2023.3,2022.8,0.001]
[1772035920988,7.61379008,2023.3,2022.8,1.23690915]
[1772035921296,3.00958753,2023.4,2022.8,7.2330929]
[1772035921996,3.00955503,2023.4,2022.8,7.2330929]
[1772035922592,6.37818008,2023.3,2022.8,0.001]
[1772035923796,6.37818008,2023.3,2023.0,0.001]
[1772035923797,7.61384635,2023.2,2023.0,0.001]
[1772035923970,7.61584635,2023.2,2023.0,0.001]
[1772035924171,7.61584635,2023.2,2022.8,0.001]
[1772035924783,0.002,2023.2,2022.8,5.99718375]
[1772035924978,6.38018008,2023.2,2022.8,0.001]
[1772035925669,1.23572734,2023.1,2022.8,0.001]
[1772035925869,6.37818008,2023.0,2022.8,0.001]
[1772035927811,7.6140296,2022.9,2022.6,0.001]
[1772035928107,6.37818008,2022.8,2022.6,0.001]
[1772035928289,6.37818008,2023.0,2022.6,0.001]
[1772035928490,9.39997775,2023.0,2022.6,0.001]
[1772035929212,6.37818008,2022.9,2022.6,0.001]
[1772035929412,6.37818008,2022.8,2022.6,0.001]
[1772035930000,7.6141518,2022.7,2021.7,7.23273758]
[1772035930192,6.37818008,2022.5,2021.7,7.23273758]
[1772035930390,6.37818008,2022.5,2021.7,1.23655383]
[1772035930589,1.789,2022.6,2021.7,1.23655383]
[1772035930590,8.16718008,2022.6,2021.7,30.0]
[1772035930894,7.6141518,2022.7,2021.7,30.0]
[1772035931105,3.02496131,2022.8,2022.0,2.4462327]
[1772035931607,11.32170997,2022.9,2022.0,2.4462327]
[1772035931608,7.6140774,2022.9,2022.1,1.907]
[1772035932009,7.6140774,2022.9,2022.1,3.14329044]
[1772035932217,7.6140774,2022.9,2022.1,1.907]
[1772035933205,6.37818008,2022.6,2021.9,5.99618375]
[1772035933417,6.37818008,2022.5,2021.9,5.99618375]
[1772035933633,6.37818008,2022.5,2021.9,7.23264199]
[1772035933832,6.37818008,2022.5,2021.7,5.99618375]
[1772035934019,6.37818008,2022.5,2021.4,7.39329066]
[1772035934020,7.6144574,2022.2,2021.6,6.104534]
[1772035934220,7.6144574,2022.2,2021.6,5.99618375]
[1772035934557,6.37818008,2022.2,2021.6,5.99618375]
[1772035934861,6.37818008,2022.2,2021.4,9.13894629]
[1772035935058,6.37818008,2022.2,2021.4,1.906]
[1772035935218,6.37818008,2022.1,2021.4,1.906]
[1772035935418,6.37818008,2022.1,2021.4,6.681396]
[1772035935749,8.16918008,2022.0,2021.3,5.99618375]
[1772035935914,8.16918008,2022.0,2021.2,1.906]
[1772035935915,1.23652191,2021.8,2021.2,1.906]
[1772035936115,1.23652191,2021.8,2021.3,5.99618375]
[1772035937017,1.23652191,2021.8,2021.3,17.9]
[1772035938245,1.794,2022.2,2021.5,5.99618375]
[1772035938544,6.37818008,2022.1,2021.4,18.1021]
[1772035938850,6.37818008,2022.1,2021.9,0.001]
[1772035939344,6.37818008,2022.1,2021.4,11.7333]
[1772035939539,6.37818008,2022.1,2021.6,0.001]
[1772035940132,1.2363996,2022.0,2021.6,0.001]
[1772035941471,7.61457968,2022.0,2021.6,0.001]
[1772035941769,1.2363996,2022.0,2021.6,0.001]
[1772035942141,7.61457968,2022.0,2021.6,0.001]
[1772035943045,7.61457968,2022.0,2021.0,5.99618375]
[1772035943377,7.61457968,2022.0,2021.1,5.99618375]
[1772035943378,6.37818008,2021.8,2021.1,5.99618375]
[1772035943536,1.799,2021.9,2021.1,5.99618375]
[1772035945842,1.23652191,2021.8,2021.3,5.7621305]
[1772035946243,3.03550155,2021.9,2021.3,5.7621305]
[1772035947067,5.65909424,2021.8,2021.1,8.8539605]
[1772035947278,6.14921045,2021.7,2021.1,5.7621305]
[1772035947848,1.23664424,2021.6,2021.1,5.7621305]
[1772035948373,6.89573848,2021.6,2021.1,6.25224671]
[1772035948600,1.23664424,2021.6,2021.1,5.7621305]
[1772035949992,5.76755726,2021.6,2021.1,5.7621305]
[1772035950375,5.76755726,2021.4,2020.8,5.8257914]
[1772035950575,7.57255726,2021.4,2020.8,5.8257914]
[1772035950803,12.51891796,2021.8,2021.0,5.8247914]
[1772035951231,5.76755726,2021.5,2020.8,0.001]
[1772035951378,1.806,2021.4,2020.8,0.001]
[1772035951578,5.76755726,2021.4,2021.3,0.001]
[1772035951796,7.57355726,2021.4,2021.3,0.001]
[1772035952187,8.81032385,2021.4,2021.0,0.001]
[1772035952592,1.23676659,2021.4,2021.0,5.8257914]
[1772035952994,1.23675245,2021.5,2021.0,5.8257914]
[1772035953792,1.23658307,2021.7,2021.2,5.8247914]
[1772035954217,5.76755726,2021.6,2021.0,0.001]
[1772035954417,1.23658307,2021.7,2021.2,5.8247914]
[1772035957721,3.04652191,2021.8,2021.3,5.8247914]
[1772035958020,0.002,2021.8,2021.3,5.8247914]
[1772035958210,1.23852379,2021.8,2021.3,5.8247914]
[1772035958397,0.002,2021.8,2021.3,5.8247914]
[1772035958821,0.002,2021.8,2021.3,7.06157856]
[1772035959393,0.002,2021.8,2021.0,7.06279737]
[1772035959600,1.814,2021.7,2021.0,7.06279737]
[1772035960004,1.814,2021.7,2021.0,5.8257914]
[1772035960624,1.814,2021.7,2021.0,7.0627964]
[1772035960828,1.23664424,2021.6,2021.0,7.06278841]
[1772035961219,1.23664424,2021.6,2021.0,5.8257914]
[1772035961428,1.23664424,2021.6,2021.0,7.06280232]
[1772035961599,3.05062813,2021.7,2021.0,7.06280232]
[1772035961914,3.05062813,2021.7,2021.0,7.06279509]
[1772035962111,3.05062813,2021.7,2021.0,5.8257914]
[1772035962316,5.76755726,2021.6,2021.0,5.8257914]
[1772035963206,1.23670541,2021.5,2021.0,5.8257914]
[1772035965345,5.76955726,2021.8,2021.2,0.001]
[1772035965549,1.23660394,2021.7,2021.2,5.8257914]
[1772035965721,0.002,2021.5,2021.2,5.8257914]
[1772035966108,0.002,2021.5,2021.2,0.001]
[1772035966657,5.76955726,2021.5,2021.2,0.001]
[1772035966944,0.002,2021.5,2021.2,0.001]
[1772035969841,0.002,2021.5,2021.2,5.8257914]
[1772035971675,0.002,2021.5,2021.2,7.06267592]
[1772035972268,0.002,2022.0,2021.2,7.06267592]
[1772035972269,0.002,2022.0,2021.6,5.8247914]
[1772035972571,4.94389473,2022.7,2021.9,5.8247914]
[1772035972746,7.00524696,2023.2,2022.5,2.45055914]
[1772035972943,0.002,2023.3,2023.2,4.94778804]
[1772035973138,0.002,2023.4,2023.3,4.14160896]
[1772035973364,0.002,2023.6,2023.5,4.14160896]
[1772035973657,7.0026741,2024.1,2023.8,4.13960896]
[1772035974281,5.76755726,2024.0,2023.1,1.921]
[1772035974445,5.76755726,2023.8,2023.1,1.921]
[1772035974969,5.76755726,2023.4,2022.6,24.042268]
[1772035975169,5.76755726,2023.2,2022.4,8.201379]
[1772035975369,5.76755726,2023.2,2022.5,10.249982]
[1772035975571,1.23572734,2023.1,2022.4,4.832831]
[1772035975756,1.23572734,2023.1,2022.4,6.06898323]
[1772035975961,0.18685624,2024.2,2023.1,6.14043711]
[1772035976151,8.72079704,2024.7,2023.6,6.14043711]
[1772035976477,8.11354437,2024.3,2024.1,6.178636]
[1772035976677,7.48598523,2024.3,2024.1,6.178636]
[1772035977162,7.48598523,2024.3,2023.4,1.922]
[1772035977572,1.23505582,2024.2,2023.4,9.29793954]
[1772035977758,1.23505582,2024.2,2023.4,8.06243711]
[1772035977967,6.89804105,2024.2,2022.7,7.45832883]
[1772035978178,5.66298523,2023.9,2022.9,4.324331]
[1772035978488,5.66298523,2023.8,2022.9,4.324331]
[1772035978663,5.66298523,2023.6,2022.7,4.66675]
[1772035978856,1.823,2023.5,2022.7,4.66675]
[1772035979187,1.823,2023.5,2022.8,6.14043711]
[1772035979394,0.18685624,2024.4,2023.4,6.14043711]
[1772035979598,5.66298523,2024.9,2023.9,6.14043711]
[1772035979774,6.84489572,2026.2,2023.8,3.42244786]
[1772035979775,0.802,2026.3,2024.8,3.42244786]
[1772035979976,5.66298523,2026.2,2025.8,5.602985]
[1772035980155,5.66298523,2026.0,2024.4,8.82742012]
[1772035980357,5.66298523,2025.8,2025.2,5.602985]
[1772035980584,5.66298523,2025.8,2025.5,5.602985]
[1772035980892,5.66298523,2025.8,2023.9,2.76890301]
[1772035980893,1.822,2025.8,2025.6,5.107985]
[1772035981058,5.66298523,2025.7,2024.3,30.67089211]
[1772035981260,7.48498523,2025.7,2024.5,19.83659311]
[1772035981562,2.57107336,2025.8,2024.5,19.83659311]
[1772035981563,1.23426314,2025.5,2024.5,6.14043711]
[1772035981791,1.822,2025.4,2024.5,6.14043711]
[1772035982170,7.48498523,2025.4,2024.3,3.15498278]
[1772035982373,7.48498523,2025.4,2023.9,2.68698301]
[1772035982374,9.08543309,2025.1,2023.9,2.68698301]
[1772035982572,9.08543309,2024.8,2023.8,15.8473]
[1772035982884,5.66298523,2024.8,2023.8,15.6]
[1772035983091,1.821,2024.7,2023.8,14.981]
[1772035983265,5.66298523,2024.7,2023.5,27.93842135]
[1772035983465,3.42244786,2024.7,2023.4,10.33458]
[1772035983693,3.42244786,2024.7,2023.2,1.23566627]
[1772035983694,5.66298523,2024.3,2023.2,1.23566627]
[1772035983990,5.66298523,2024.3,2023.3,2.335864]
[1772035984165,1.821,2024.2,2023.3,2.335864]
[1772035984492,5.66298523,2024.3,2023.3,2.335864]
[1772035984992,7.48398523,2024.3,2023.3,2.335864]
[1772035985390,6.89783381,2024.6,2023.5,32.84338111]
[1772035985594,7.48398523,2024.9,2023.8,26.702944]
[1772035985891,5.93666988,2026.4,2023.8,26.702944]
[1772035985892,1.821,2025.4,2024.6,3.42244786]
[1772035986131,5.66298523,2026.0,2024.8,16.33093386]
[1772035986275,1.821,2026.2,2024.4,6.84489572]
[1772035986276,5.66298523,2025.6,2024.4,6.14043711]
[1772035986480,5.66298523,2025.6,2024.5,18.257902]
[1772035986865,2.57107336,2025.8,2024.7,32.84338111]
[1772035987174,2.57107336,2025.8,2024.8,4.48096]
[1772035987371,7.48698523,2026.0,2024.8,6.14043711]
[1772035987571,7.48698523,2026.0,2024.9,4.598853]
[1772035987781,1.23401944,2025.9,2025.0,1.2345679]
[1772035988366,1.23401944,2025.9,2024.9,3.16058453]
[1772035988768,3.42244786,2025.7,2024.5,1.23482214]
[1772035989099,0.244231,2025.4,2024.5,12.783115]
[1772035989592,6.89700467,2025.9,2024.7,6.14043711]
[1772035989771,0.244231,2025.5,2024.8,1.23467039]
[1772035990214,0.244231,2025.6,2024.9,20.584877]
[1772035990520,0.244231,2025.6,2024.8,26.458713]
[1772035990724,0.244231,2025.6,2024.8,3.666]
[1772035990922,0.244231,2025.4,2024.3,6.14043711]
[1772035991085,3.42244786,2025.6,2024.0,3.16817786]
[1772035991086,0.244231,2025.0,2024.0,3.16817786]
[1772035991289,0.244231,2025.1,2024.1,13.34638711]
[1772035991488,0.244231,2025.0,2024.1,6.14043711]
[1772035991794,1.23462887,2024.9,2024.1,7.37554035]
[1772035992010,1.47885987,2024.9,2024.1,6.14043711]
[1772035992319,0.244231,2024.7,2023.9,2.0134]
[1772035992522,6.89757066,2025.0,2023.9,2.0134]
[1772035992720,0.244231,2024.7,2023.8,7.37569067]
[1772035992895,0.244231,2024.7,2023.8,2.046665]
[1772035993096,0.244231,2024.7,2023.7,2.89566]
[1772035993097,0.244231,2024.5,2023.7,2.89566]
[1772035993628,0.184231,2024.5,2024.0,1.23517786]
[1772035993787,4.93757285,2025.3,2024.2,19.989768]
[1772035993788,4.93771777,2025.3,2024.2,19.989768]
[1772035993989,3.06136851,2025.4,2024.5,19.52766]
[1772035994215,3.06136851,2025.4,2024.5,13.2472]
[1772035994517,3.06136851,2025.4,2024.5,13.2464]
[1772035994724,8.72435374,2025.4,2024.2,11.484]
[1772035995092,5.66298523,2025.3,2024.2,11.484]
[1772035995295,5.66298523,2025.3,2024.2,26.457113]
[1772035995526,3.06136851,2025.4,2024.3,26.457113]
[1772035995820,8.35974419,2025.6,2024.5,14.28596]
[1772035995821,6.76383659,2025.6,2024.5,14.28596]
[1772035996024,6.76383659,2025.6,2024.6,9.76196]
[1772035996321,5.66298523,2025.5,2024.5,1.935]
[1772035996693,5.66298523,2025.2,2024.2,13.0]
[1772035996908,1.827,2025.1,2024.0,9.31061176]
[1772035997127,3.42244786,2025.0,2023.9,6.137722]
[1772035997434,5.66298523,2025.0,2023.9,6.136922]
[1772035997793,1.23462887,2024.9,2023.9,1.23518794]
[1772035998494,1.23460406,2025.0,2024.0,2.874744]
[1772035999592,1.23460406,2025.0,2024.1,7.999947]
[1772035999593,5.66298523,2024.9,2024.1,7.999947]
[1772035999797,4.65705192,2025.0,2023.5,6.14043711]
[1772035999798,1.23481181,2024.6,2023.6,1.23538303]
[1772036000316,3.05781181,2024.6,2023.6,1.23458303]
[1772036000629,3.05701181,2024.6,2023.7,25.42277]
[1772036000925,3.05701181,2024.6,2023.6,1.23458303]
[1772036001097,3.05701181,2024.6,2023.7,11.333388]
[1772036001434,3.05701181,2024.6,2023.7,2.64796]
[1772036001595,3.05701181,2024.6,2023.6,1.23458303]
[1772036001990,3.05701181,2024.6,2023.7,2.631652]
[1772036003719,3.05701181,2024.6,2023.7,14.36523358]
[1772036003913,3.05701181,2024.6,2023.7,1.23530158]
[1772036004114,5.66218523,2024.9,2023.7,7.37573869]
[1772036004496,3.42244786,2024.8,2023.7,1.23530158]
[1772036004696,5.66298523,2024.6,2023.7,1.23530158]
[1772036005097,5.66298523,2024.6,2023.9,0.001]
[1772036005317,0.002,2024.4,2023.9,0.001]
[1772036008503,0.002,2024.4,2023.9,6.0927694]
[1772036008717,0.002,2024.6,2024.0,9.51421726]
[1772036009136,0.0012,2024.6,2024.0,9.51421726]
[1772036009306,0.0012,2024.6,2024.0,11.43821726]
[1772036009502,0.0012,2024.6,2024.1,6.0917694]
[1772036010133,0.0012,2024.6,2024.2,1.23505582]
[1772036011439,0.0012,2024.6,2023.9,0.001]
[1772036011603,5.95269987,2024.6,2023.9,0.001]
[1772036012033,5.95269987,2024.6,2023.7,1.23636044]
[1772036012339,5.95149987,2024.4,2023.7,0.001]
[1772036014544,5.95149987,2024.2,2023.7,0.001]
[1772036015106,5.95149987,2024.2,2023.4,0.001]
[1772036015617,5.95069987,2024.2,2023.4,0.001]
[1772036015818,1.23499481,2024.3,2023.4,0.001]
[1772036015819,5.95149987,2024.0,2023.4,0.001]
[1772036016017,1.815,2023.9,2023.4,0.001]
[1772036016646,1.23529993,2023.8,2023.4,0.001]
[1772036017263,1.23529993,2023.8,2022.8,7.1397438]
[1772036018311,7.1867998,2023.8,2022.5,7.13994396]
[1772036018540,5.95149987,2024.2,2023.6,0.001]
[1772036018740,0.002,2024.4,2023.6,0.001]
[1772036022156,5.95149987,2024.3,2023.6,0.001]
[1772036023253,5.95149987,2024.1,2023.4,0.001]
[1772036023892,5.95069987,2024.1,2023.4,0.001]
[1772036025491,7.18667773,2024.0,2023.4,0.001]
[1772036025791,5.95149987,2023.8,2023.4,0.001]
[1772036026691,3.35228966,2023.9,2023.4,0.001]
[1772036027982,1.23522332,2024.0,2023.4,0.001]
[1772036028480,3.05108513,2024.2,2023.4,5.90488063]
[1772036029858,3.05108513,2024.2,2023.5,1.23548307]
[1772036030781,3.05108513,2024.2,2023.6,0.001]
[1772036031076,0.002,2023.7,2023.6,0.001]
[1772036031328,1.23696379,2024.4,2023.6,5.90488063]
[1772036031603,0.002,2024.2,2023.6,5.90488063]
[1772036032181,0.002,2024.2,2023.6,0.001]
[1772036032883,0.002,2024.2,2023.6,1.2364166]
[1772036033291,0.002,2024.2,2023.6,1.236422]
[1772036033675,0.002,2024.2,2023.6,1.23639384]
[1772036033909,0.002,2024.2,2023.6,0.001]
[1772036037310,1.23705582,2024.2,2023.6,0.001]
[1772036037827,8.3169275,2024.1,2023.6,0.001]
[1772036038115,5.87277882,2023.9,2023.4,0.001]
[1772036038319,1.816,2023.9,2023.4,6.18390329]
[1772036039542,3.05128253,2023.9,2023.4,0.001]
[1772036039842,1.23528253,2023.9,2023.4,0.001]
[1772036040705,5.87477882,2024.2,2023.4,7.41942661]
[1772036040903,0.002,2024.2,2023.8,8.62705197]
[1772036041106,0.002,2024.4,2023.9,6.18290329]
[1772036041601,0.002,2024.4,2023.6,6.18290329]
[1772036041804,5.87477882,2024.4,2023.6,6.18290329]
[1772036042009,5.87277882,2024.3,2023.4,6.18390329]
[1772036043517,5.87277882,2024.3,2023.6,0.001]
[1772036043717,0.002,2023.7,2023.6,0.001]
[1772036044237,0.002,2023.7,2023.4,0.001]
[1772036048367,0.002,2023.7,2023.5,6.18290329]
[1772036048768,1.23710664,2024.2,2023.5,6.18290329]
[1772036049463,0.002,2024.2,2023.6,2.44414868]
[1772036049769,1.23694875,2024.4,2023.6,6.18290329]
[1772036050186,0.002,2024.4,2023.6,6.18290329]
[1772036050401,5.87477882,2024.4,2023.5,1.909]
[1772036050893,5.87477882,2024.4,2023.4,0.001]
[1772036051453,5.87277882,2024.1,2023.4,0.001]
[1772036052308,7.10801771,2023.9,2023.4,0.001]
[1772036053108,9.55216639,2023.9,2023.4,0.001]
[1772036053758,7.10801771,2023.9,2023.4,0.001]
[1772036054194,7.10801771,2023.9,2023.1,0.001]
[1772036054503,1.23523889,2023.9,2023.1,6.18390329]
[1772036054793,1.23523889,2023.9,2023.3,6.18290329]
[1772036056681,1.23523889,2023.9,2023.6,0.001]
[1772036056853,0.002,2023.7,2023.6,0.001]
[1772036057557,0.002,2023.7,2023.4,0.001]
[1772036058283,0.002,2023.7,2023.1,0.001]
[1772036058284,5.87477882,2023.7,2023.1,0.001]
[1772036058586,1.23542202,2023.6,2023.1,0.001]
[1772036058771,7.10820084,2023.6,2023.1,0.001]
[1772036058976,5.87277882,2023.5,2023.1,0.001]
[1772036059283,5.87277882,2023.5,2022.5,1.23604345]
[1772036059657,5.87277882,2023.5,2022.5,3.483884]
[1772036059859,5.87277882,2023.5,2022.3,3.1421704]
[1772036060209,5.87277882,2023.5,2022.3,3.1422149]
[1772036060504,5.87277882,2023.3,2022.2,3.14124912]
[1772036060669,3.67969281,2023.4,2022.2,3.14124912]
[1772036060670,5.87277882,2023.1,2022.2,3.14124912]
[1772036060875,5.87277882,2023.1,2022.3,2.238318]
[1772036061567,1.823,2023.2,2022.3,8.42122129]